bitfinex/quotes_ETHUSD_20250123
["timestamp","ask_amount","ask_price","bid_price","bid_amount"]
[1737637577760,3.11467,3210.7,3210.3,0.43498522]
[1737637577948,3.11417,3211.2,3210.3,0.43498522]
[1737637578154,3.11421,3211.1,3210.4,3.90508]
[1737637578395,3.11421,3211.1,3210.5,3.11473]
[1737637578801,3.11421,3211.1,3210.5,3.22697565]
[1737637578961,3.11421,3211.1,3210.5,3.22266252]
[1737637579168,3.11431,3211.0,3210.5,0.11224565]
[1737637579477,3.11421,3211.1,3210.5,0.11224565]
[1737637579664,3.1145,3210.8,3210.5,0.11224565]
[1737637580049,3.11461,3210.7,3210.5,0.11224565]
[1737637580293,3.11468,3210.6,3210.5,0.11224565]
[1737637580797,3.1145,3210.8,3210.5,0.11224565]
[1737637580955,3.11464,3210.7,3210.2,0.11224565]
[1737637581153,3.1145,3210.8,3210.2,0.11224565]
[1737637581469,3.1147,3210.6,3210.2,0.11224565]
[1737637582042,3.11431,3211.0,3210.3,3.1149]
[1737637582199,3.11441,3210.9,3210.3,3.22714565]
[1737637582393,3.11441,3210.9,3210.3,3.94040622]
[1737637582595,3.11426,3211.1,3210.3,3.94040622]
[1737637582796,3.11426,3211.1,3210.6,0.795]
[1737637583718,0.8027,3211.6,3211.0,3.11428]
[1737637584031,0.8027,3211.6,3211.1,0.795]
[1737637584032,3.11375,3211.6,3211.1,0.795]
[1737637584333,3.11375,3211.6,3211.1,3.90918]
[1737637584519,3.11375,3211.6,3211.1,0.795]
[1737637584829,3.11375,3211.6,3211.1,3.90919]
[1737637585038,3.11375,3211.6,3211.1,0.795]
[1737637585193,3.11375,3211.6,3211.2,0.11224609]
[1737637586021,3.11383,3211.5,3211.2,0.11224609]
[1737637586220,3.11372,3211.6,3211.0,3.11428]
[1737637587955,3.11355,3211.8,3211.0,3.11428]
[1737637588142,3.11355,3211.8,3211.1,0.7641]
[1737637588363,3.11355,3211.8,3211.2,3.11403]
[1737637588642,3.11343,3211.9,3211.2,3.11403]
[1737637588818,6.11334,3212.0,3211.4,3.11383]
[1737637589020,3.11334,3212.0,3211.5,0.8076]
[1737637590583,0.758,3212.2,3211.5,0.8076]
[1737637590791,3.11341,3212.0,3211.5,0.8076]
[1737637591275,3.11341,3212.0,3211.5,3.92139]
[1737637591591,3.11299,3212.4,3211.7,3.11353]
[1737637591745,3.11299,3212.4,3211.5,0.8076]
[1737637591945,3.11299,3212.4,3211.8,3.11347]
[1737637592385,3.11237,3213.0,3212.2,3.1131]
[1737637592599,3.11237,3213.0,3212.5,3.11284]
[1737637592750,3.11217,3213.2,3212.6,3.11273]
[1737637592945,3.11194,3213.5,3212.7,3.92534]
[1737637593169,0.7854,3213.8,3213.1,3.11224]
[1737637593170,3.1117,3213.7,3213.1,3.11224]
[1737637593369,3.1117,3213.7,3212.9,3.11243]
[1737637593370,3.11179,3213.6,3213.2,0.8127]
[1737637593784,3.1117,3213.7,3213.2,0.8127]
[1737637594268,3.11161,3213.8,3213.2,0.8127]
[1737637594483,3.11169,3213.7,3213.2,0.8127]
[1737637594815,3.11161,3213.8,3213.2,0.8127]
[1737637594983,3.422771,3213.8,3213.2,0.8127]
[1737637595368,3.11168,3213.7,3213.2,0.8127]
[1737637595669,3.422771,3213.8,3213.2,0.8127]
[1737637595883,3.422771,3213.8,3213.2,3.92481]
[1737637596080,3.422771,3213.8,3213.2,0.8127]
[1737637596313,3.11139,3214.0,3213.2,0.7653]
[1737637597319,3.11121,3214.2,3213.3,3.11205]
[1737637597608,3.11121,3214.2,3213.5,3.11183]
[1737637597910,3.11121,3214.2,3213.6,3.11172]
[1737637599417,0.1635804,3215.0,3213.7,0.8111]
[1737637599566,0.1635804,3215.0,3213.6,0.390752]
[1737637599567,0.1635804,3215.0,3214.4,3.11093]
[1737637599767,0.1635804,3215.0,3214.5,0.8111]
[1737637599967,0.1635804,3215.0,3214.5,3.922]
[1737637600174,3.1106,3214.9,3214.5,0.8111]
[1737637600376,3.1106,3214.9,3214.0,3.91188]
[1737637600377,3.11079,3214.7,3214.0,3.91188]
[1737637601207,0.32741804,3214.8,3214.0,0.8005]
[1737637601408,3.11129,3214.1,3213.5,0.7952]
[1737637601710,3.11167,3213.8,3213.5,0.7952]
[1737637602021,3.11167,3213.8,3212.9,3.11242]
[1737637602022,3.11168,3213.7,3213.1,3.11222]
[1737637602187,3.11216,3213.2,3212.5,0.7952]
[1737637602371,3.11198,3213.4,3212.7,3.11258]
[1737637602571,3.11198,3213.4,3212.8,0.8155]
[1737637602813,3.11198,3213.4,3212.8,3.92801]
[1737637603023,3.11179,3213.6,3212.8,3.92801]
[1737637603310,3.11207,3213.3,3212.8,0.8155]
[1737637603508,3.11231,3213.1,3212.8,0.8155]
[1737637603814,3.11245,3212.9,3212.5,0.7857]
[1737637604572,0.7593,3213.5,3212.6,3.11268]
[1737637604573,3.11206,3213.3,3212.6,3.11268]
[1737637604780,3.11218,3213.2,3212.6,3.813802]
[1737637605312,3.11218,3213.2,3212.6,0.701122]
[1737637605313,3.1123,3213.1,3212.6,0.701122]
[1737637605498,3.11246,3212.9,3212.5,0.7857]
[1737637605698,5.57407602,3213.6,3212.5,0.7857]
[1737637605915,3.11213,3213.3,3212.5,3.89851]
[1737637606102,3.11174,3213.7,3213.0,3.94078]
[1737637606303,3.11174,3213.7,3213.1,3.11218]
[1737637606521,6.22308,3213.9,3213.2,3.11215]
[1737637606682,3.11162,3213.8,3213.2,3.11215]
[1737637607012,3.11168,3213.7,3213.1,0.705316]
[1737637607190,3.11168,3213.7,3213.1,3.817556]
[1737637607386,3.11168,3213.7,3213.2,0.7646056]
[1737637607606,3.11168,3213.7,3213.6,0.4351]
[1737637608002,3.11168,3213.7,3213.6,1.2631]
[1737637608235,3.11161,3213.8,3213.6,1.2631]
[1737637609113,3.11161,3213.8,3213.6,0.4351]
[1737637609319,3.1114,3214.0,3213.7,0.828]
[1737637609480,3.11148,3213.9,3213.7,0.828]
[1737637609682,3.11139,3214.0,3213.7,0.828]
[1737637609909,3.11149,3213.9,3213.7,0.828]
[1737637610213,3.11139,3214.0,3213.7,0.828]
[1737637610516,3.11158,3213.8,3213.6,0.4351]
[1737637611219,3.11167,3213.7,3213.6,0.4351]
[1737637611415,3.11158,3213.8,3213.6,0.4351]
[1737637611791,3.11141,3214.0,3213.6,0.4351]
[1737637612037,3.11155,3213.9,3213.6,0.4351]
[1737637612502,3.11141,3214.0,3213.6,0.4351]
[1737637612694,6.22288,3214.0,3213.6,0.4351]
[1737637613021,3.11154,3213.9,3213.6,0.4351]
[1737637613786,3.11141,3214.0,3213.6,0.4351]
[1737637613989,6.22288,3214.0,3213.6,0.4351]
[1737637614189,3.11141,3214.0,3213.6,0.4351]
[1737637614988,6.22248,3214.2,3213.6,0.4351]
[1737637615185,3.11131,3214.1,3213.6,0.4351]
[1737637616000,3.11139,3214.0,3213.6,0.4351]
[1737637616195,3.11122,3214.2,3213.6,3.54687]
[1737637616422,3.11122,3214.2,3213.6,1.183771]
[1737637616726,3.11122,3214.2,3213.6,0.4351]
[1737637618183,3.11122,3214.2,3213.6,3.54686]
[1737637619128,3.11122,3214.2,3213.6,0.4351]
[1737637619311,3.11129,3214.1,3213.6,3.54687]
[1737637619631,3.11113,3214.3,3213.6,3.54687]
[1737637620027,3.1112,3214.2,3213.6,3.54687]
[1737637620211,3.11131,3214.1,3213.6,3.54687]
[1737637620605,3.11131,3214.1,3213.7,0.11167415]
[1737637621888,3.11155,3213.9,3213.7,0.11167415]
[1737637622089,3.11158,3213.8,3213.7,0.11167415]
[1737637622323,6.22311,3213.9,3213.7,0.11167415]
[1737637622523,3.11155,3213.9,3213.7,0.11167415]
[1737637623832,3.11155,3213.9,3213.8,0.11167415]
[1737637625235,3.11155,3213.9,3213.6,0.4351]
[1737637625635,3.11167,3213.7,3213.6,0.4351]
[1737637625950,7.45337,3213.7,3213.6,0.4351]
[1737637626155,0.7917,3212.9,3212.1,0.7633]
[1737637626304,3.1127,3212.7,3212.1,3.87644]
[1737637626711,3.1127,3212.7,3212.2,3.11313]
[1737637626907,3.1127,3212.7,3212.1,3.87644]
[1737637627424,3.8646,3213.3,3212.5,3.11283]
[1737637627623,3.11228,3213.1,3212.6,0.8207]
[1737637629427,3.11222,3213.2,3212.6,3.93338]
[1737637629734,3.86458,3213.3,3212.6,3.93338]
[1737637630054,3.11236,3213.0,3212.6,0.8207]
[1737637630252,3.11226,3213.1,3212.6,0.8207]
[1737637630853,3.11257,3212.8,3212.3,3.11295]
[1737637631051,3.11257,3212.8,3212.3,0.8143]
[1737637631518,3.11236,3213.0,3212.3,0.8143]
[1737637631851,3.11236,3213.0,3212.3,1.5769372]
[1737637632070,3.11246,3212.9,3212.3,3.92727]
[1737637633140,3.11293,3212.4,3212.3,0.8143]
[1737637633306,3.11308,3212.3,3212.0,0.7692]
[1737637633505,3.11316,3212.2,3212.0,0.7692]
[1737637633710,3.11293,3212.4,3212.0,0.7692]
[1737637633910,3.11319,3212.2,3211.6,0.7509]
[1737637634144,0.8329,3212.1,3211.3,3.86484]
[1737637634351,3.11356,3211.8,3211.3,0.7509]
[1737637635036,3.11339,3212.0,3211.4,3.11389]
[1737637635456,0.8329,3212.1,3211.5,3.11373]
[1737637635646,3.11323,3212.1,3211.5,3.11373]
[1737637637266,3.11323,3212.1,3211.3,3.86484]
[1737637637418,3.11334,3212.0,3211.4,3.11388]
[1737637640064,3.11271,3212.7,3212.0,0.7649]
[1737637640230,3.11252,3212.9,3212.2,3.11306]
[1737637640434,3.11255,3212.8,3212.2,3.11306]
[1737637640861,3.11252,3212.9,3212.2,3.11306]
[1737637641234,3.11252,3212.9,3212.2,3.11303]
[1737637641421,3.11252,3212.9,3212.2,6.22607]
[1737637641620,3.11252,3212.9,3212.4,3.11293]
[1737637642025,3.11255,3212.8,3212.2,3.11303]
[1737637642602,3.11252,3212.9,3212.2,3.11303]
[1737637643267,3.11264,3212.7,3212.0,3.87817]
[1737637643913,3.11264,3212.7,3212.0,0.7649]
[1737637643914,3.11319,3212.2,3212.0,0.7649]
[1737637644405,6.22596,3212.4,3212.0,0.7649]
[1737637644708,3.11295,3212.4,3212.0,0.7649]
[1737637644909,3.11275,3212.6,3212.0,4.266029]
[1737637645206,3.11261,3212.8,3212.1,3.11315]
[1737637645365,3.11277,3212.6,3212.1,3.11315]
[1737637645557,3.11261,3212.8,3212.2,3.11313]
[1737637645761,3.1124,3213.0,3212.3,3.11297]
[1737637646004,3.11255,3212.8,3212.3,3.11297]
[1737637646691,3.11255,3212.8,3212.1,6.22637]
[1737637646912,3.11255,3212.8,3212.2,3.11312]
[1737637647105,3.11255,3212.8,3212.1,0.7379109]
[1737637647313,3.11255,3212.8,3212.1,3.8511209]
[1737637647314,3.1127,3212.7,3212.1,3.8511209]
[1737637648177,3.11275,3212.6,3212.1,0.7379109]
[1737637648576,3.11275,3212.6,3212.0,3.87821]
[1737637648794,3.1127,3212.7,3212.0,3.87821]
[1737637649914,3.11284,3212.5,3212.0,0.7649]
[1737637650243,3.11299,3212.4,3212.0,0.7649]
[1737637651324,3.11276,3212.6,3212.0,0.7649]
[1737637651532,3.11276,3212.6,3212.1,3.11322]
[1737637651825,3.11267,3212.7,3212.1,3.11322]
[1737637652127,3.11258,3212.8,3212.2,3.11312]
[1737637652558,3.11258,3212.8,3212.3,3.11302]
[1737637652721,3.11247,3212.9,3212.3,3.11302]
[1737637653956,3.11216,3213.3,3212.8,3.11251]
[1737637654124,5.39,3214.5,3212.9,0.7757]
[1737637654125,3.11168,3213.7,3212.9,0.7757]
[1737637654328,3.11209,3213.3,3212.9,0.7757]
[1737637654513,3.11218,3213.2,3212.9,0.7757]
[1737637654714,3.11228,3213.1,3212.6,0.7937]
[1737637655460,3.11213,3213.3,3212.6,3.90637]
[1737637655748,3.11216,3213.2,3212.6,3.90637]
[1737637655954,3.11216,3213.2,3212.6,0.7937]
[1737637656155,3.11239,3213.0,3212.6,0.7937]
[1737637656351,3.1126,3212.8,3212.6,0.7937]
[1737637657116,3.1126,3212.8,3212.3,0.7643]
[1737637657565,3.1126,3212.8,3212.3,3.87731]
[1737637657970,3.1128,3212.6,3212.3,0.7643]
[1737637658277,3.11334,3212.0,3211.4,0.8187]
[1737637658487,3.1133,3212.1,3211.4,0.8187]
[1737637658818,3.1133,3212.1,3211.4,3.93254]
[1737637659017,3.1133,3212.1,3211.5,3.11378]
[1737637659618,3.1133,3212.1,3211.5,3.11375]
[1737637660420,3.11277,3212.6,3211.7,0.7945]
[1737637660623,3.11277,3212.6,3212.0,3.1133]
[1737637660979,3.735079,3212.8,3212.1,3.11315]
[1737637661186,3.11266,3212.7,3212.1,3.11315]
[1737637661519,3.735079,3212.8,3212.1,3.11315]
[1737637661719,3.11274,3212.6,3212.1,3.11315]
[1737637662678,6.847709,3212.8,3212.1,3.11315]
[1737637662897,3.11271,3212.7,3212.1,3.11315]
[1737637663097,3.11271,3212.7,3212.2,0.7688]
[1737637663482,3.11271,3212.7,3212.3,0.11195257]
[1737637663730,3.1124,3213.0,3212.5,3.11283]
[1737637664222,3.11217,3213.2,3212.5,3.11283]
[1737637664223,3.11217,3213.2,3212.7,3.11263]
[1737637665092,3.11217,3213.2,3212.8,0.11195257]
[1737637666817,3.11217,3213.2,3212.7,0.11195257]
[1737637669189,3.11217,3213.2,3212.6,3.93791]
[1737637669190,3.11225,3213.1,3212.8,0.11195257]
[1737637669645,3.92845,3212.9,3212.8,0.11195257]
[1737637669942,6.92845,3212.9,3212.8,0.11195257]
[1737637670429,3.816,3212.9,3212.1,0.11195257]
[1737637670731,3.11291,3212.5,3212.1,0.11195257]
[1737637670917,3.11257,3212.8,3212.2,3.11306]
[1737637671508,3.11265,3212.7,3212.1,3.22508257]
[1737637671704,0.34478643,3213.1,3212.4,3.11284]
[1737637671705,3.11231,3213.1,3212.4,3.11284]
[1737637671905,3.11231,3213.1,3212.5,3.11274]
[1737637672433,3.11231,3213.1,3212.5,3.22469257]
[1737637673436,3.11251,3212.9,3212.5,0.11195257]
[1737637673730,3.11236,3213.0,3212.6,0.11195257]
[1737637673926,3.11247,3212.9,3212.6,0.11195257]
[1737637674492,3.11231,3213.1,3212.6,0.11195257]
[1737637674998,3.1124,3213.0,3212.4,3.22487257]
[1737637675219,6.22465,3213.1,3212.5,3.11282]
[1737637675497,3.11231,3213.1,3212.5,3.11282]
[1737637676240,3.1124,3213.0,3212.5,3.11282]
[1737637676398,6.22466,3213.1,3212.6,0.11195257]
[1737637676601,3.11231,3213.1,3212.6,3.22469257]
[1737637676933,3.11231,3213.1,3212.6,0.11195257]
[1737637677500,3.11231,3213.1,3212.6,3.22468257]
[1737637677831,3.11231,3213.1,3212.7,0.11195257]
[1737637678426,3.11241,3213.0,3212.7,0.11195257]
[1737637679131,3.11241,3213.0,3212.5,0.11195257]
[1737637680137,3.7936,3213.5,3212.6,0.11195257]
[1737637680308,3.11234,3213.1,3212.6,0.11195257]
[1737637680714,6.22469,3213.1,3212.6,0.11195257]
[1737637681145,3.11234,3213.1,3212.6,0.11195257]
[1737637681298,3.11235,3213.0,3212.6,0.11195257]
[1737637681658,3.11235,3213.0,3212.7,0.11195257]
[1737637682193,3.11254,3212.8,3212.7,0.11195257]
[1737637683442,3.11313,3212.2,3212.1,0.11195257]
[1737637684703,0.7899,3212.3,3212.1,0.11195257]
[1737637684900,1.18046,3213.4,3212.2,0.7909]
[1737637685103,3.11232,3213.1,3212.4,0.7909]
[1737637685408,3.11238,3213.0,3212.4,3.90381]
[1737637685952,3.11238,3213.0,3212.4,0.7909]
[1737637686235,3.1127,3212.7,3212.5,0.11195257]
[1737637686907,3.11274,3212.6,3212.5,0.11195257]
[1737637687715,3.1127,3212.7,3212.2,0.11195257]
[1737637689140,3.11247,3212.9,3212.3,3.22498257]
[1737637690355,6.22464,3213.1,3212.4,3.11285]
[1737637690646,3.11242,3213.0,3212.4,3.22480257]
[1737637690809,3.11257,3212.8,3212.4,0.11195257]
[1737637691146,3.11271,3212.7,3212.4,0.11195257]
[1737637691441,0.7666,3213.2,3212.4,0.11195257]
[1737637691603,3.11223,3213.2,3212.5,3.92247]
[1737637691804,3.11226,3213.1,3212.5,4.03442257]
[1737637693444,3.11226,3213.1,3212.6,0.11195257]
[1737637693740,3.11239,3213.0,3212.6,0.11195257]
[1737637693951,3.11264,3212.7,3212.6,0.11195257]
[1737637694544,6.11264,3212.7,3212.6,0.11195257]
[1737637696370,3.0,3212.7,3211.9,0.11195257]
[1737637696650,3.11307,3212.3,3211.9,0.11195257]
[1737637697366,3.11319,3212.2,3211.9,0.11195257]
[1737637697776,3.11319,3212.2,3212.0,0.11195257]
[1737637698624,3.11322,3212.1,3212.0,0.11195257]
[1737637699076,3.11322,3212.1,3211.5,0.7643]
[1737637699478,3.11351,3211.9,3211.5,0.7643]
[1737637699770,6.22702,3211.9,3211.5,0.7643]
[1737637699954,3.11351,3211.9,3211.6,0.11192966]
[1737637700271,3.11359,3211.8,3211.6,0.11192966]
[1737637700473,3.11361,3211.7,3211.6,0.11192966]
[1737637702141,3.11375,3211.6,3211.3,0.11192966]
[1737637703159,3.11382,3211.5,3211.3,0.11192966]
[1737637703360,3.11382,3211.5,3211.4,0.11192966]
[1737637704675,3.11382,3211.5,3211.3,0.11192966]
[1737637704874,3.11344,3211.9,3211.3,3.22590966]
[1737637705034,3.11344,3211.9,3211.4,0.39902097]
[1737637705240,3.11323,3212.1,3211.6,0.7603]
[1737637706047,6.22655,3212.1,3211.6,0.7603]
[1737637706384,3.1134,3212.0,3211.7,0.11192966]
[1737637709100,3.11312,3212.3,3211.7,0.11192966]
[1737637709483,3.1133,3212.1,3211.7,0.11192966]
[1737637710806,3.1133,3212.1,3211.8,0.11192966]
[1737637712003,3.1133,3212.1,3211.7,0.11192966]
[1737637712706,3.11284,3212.5,3211.8,3.11347]
[1737637712865,3.113,3212.4,3211.8,2.94767908]
[1737637715903,3.113,3212.4,3211.9,0.8135]
[1737637716106,3.11284,3212.5,3211.9,0.8135]
[1737637716314,3.11308,3212.3,3211.9,0.8135]
[1737637716670,3.11323,3212.1,3211.9,0.8135]
[1737637717067,3.11323,3212.1,3211.7,0.94142966]
[1737637717515,3.11323,3212.1,3212.0,0.11192966]
[1737637717819,4.285861,3212.1,3212.0,0.11192966]
[1737637718305,8.100161,3212.1,3212.0,0.11192966]
[1737637718873,3.11371,3211.6,3211.5,0.11192966]
[1737637720011,3.11371,3211.6,3211.2,0.11192966]
[1737637720179,3.114,3211.3,3211.2,0.11192966]
[1737637721515,3.114,3211.3,3211.0,0.11192966]
[1737637722515,3.114,3211.3,3211.1,0.11192966]
[1737637722940,3.11365,3211.7,3211.1,0.11192966]
[1737637723339,3.11393,3211.4,3211.1,0.11192966]
[1737637723712,3.114,3211.3,3211.2,0.11192966]
[1737637723912,3.664,3211.3,3211.2,0.11192966]
[1737637724229,4.424,3211.3,3211.2,0.11192966]
[1737637725049,7.424,3211.3,3211.2,0.11192966]
[1737637725268,6.11458,3210.7,3210.6,0.11192966]
[1737637725428,6.87008,3210.7,3210.6,0.11192966]
[1737637726107,3.1149,3210.4,3210.0,0.11192966]
[1737637726307,0.55,3210.5,3210.0,0.11192966]
[1737637726537,3.11516,3210.1,3210.0,0.11192966]
[1737637726953,3.11497,3210.3,3210.0,0.11192966]
[1737637727249,3.11497,3210.3,3210.1,0.776]
[1737637728412,3.11497,3210.3,3210.2,0.11192966]
[1737637729722,3.11497,3210.3,3210.1,0.776]
[1737637736089,3.11507,3210.2,3210.1,0.776]
[1737637736297,3.11519,3210.1,3209.5,3.90794]
[1737637736490,3.11519,3210.1,3209.6,3.11563]
[1737637736641,6.23002,3210.3,3209.6,3.22759839]
[1737637736981,3.11512,3210.2,3209.6,3.22759839]
[1737637737137,6.66468,3210.6,3209.6,0.11196839]
[1737637737342,6.23052,3210.1,3209.6,0.11196839]
[1737637737937,3.11526,3210.1,3209.6,0.11196839]
[1737637738138,3.11544,3209.9,3209.6,0.11196839]
[1737637738340,6.23089,3209.9,3209.6,0.11196839]
[1737637738549,3.11544,3209.9,3209.6,0.11196839]
[1737637738975,6.23044,3210.1,3209.6,0.11196839]
[1737637739491,3.11526,3210.0,3209.6,0.11196839]
[1737637739657,3.1152,3210.1,3209.6,0.11196839]
[1737637739852,3.11484,3210.5,3209.9,3.1153]
[1737637740083,3.11484,3210.5,3210.0,0.7758]
[1737637740587,3.115,3210.3,3210.0,0.7758]
[1737637741491,3.11484,3210.5,3210.0,0.7758]
[1737637741845,3.1149,3210.4,3210.1,0.11194965]
[1737637742462,3.11484,3210.5,3210.1,0.11194965]
[1737637742463,3.11484,3210.5,3210.1,0.51225962]
[1737637742669,3.1146,3210.7,3210.1,0.51225962]
[1737637742981,3.11473,3210.6,3210.2,0.11194965]
[1737637743850,3.11427,3211.1,3210.4,3.11478]
[1737637744152,3.11408,3211.3,3210.8,3.11447]
[1737637744359,3.11408,3211.3,3210.9,0.7839]
[1737637744851,3.11384,3211.5,3210.9,1.46850491]
[1737637745053,6.22736,3211.7,3211.0,3.11423]
[1737637745353,3.11387,3211.5,3210.9,4.58284491]
[1737637745544,3.11429,3211.0,3210.9,0.7839]
[1737637745746,3.11429,3211.0,3210.5,0.8165]
[1737637745942,0.7573,3211.4,3210.5,0.8165]
[1737637746260,3.11477,3210.6,3210.0,3.93168]
[1737637746458,3.11458,3210.7,3210.0,3.93168]
[1737637746694,3.1148,3210.5,3210.0,4.93115791]
[1737637746849,3.11458,3210.7,3210.0,4.93115791]
[1737637747047,3.11458,3210.7,3210.1,3.11511]
[1737637747274,3.11458,3210.7,3210.1,3.22728565]
[1737637747662,3.11469,3210.6,3210.1,0.11217565]
[1737637748149,3.11443,3210.9,3210.1,3.22725565]
[1737637748380,3.11459,3210.7,3210.2,0.11217565]
[1737637748743,3.11459,3210.7,3210.2,6.17491473]
[1737637749360,3.11428,3211.1,3210.5,3.11468]
[1737637749867,3.11429,3211.0,3210.6,0.11217565]
[1737637750563,3.11445,3210.9,3210.6,0.11217565]
[1737637750967,3.11445,3210.9,3210.4,3.11487]
[1737637750968,3.11445,3210.9,3210.7,0.11217565]
[1737637751274,3.11413,3211.2,3210.7,0.11217565]
[1737637751593,3.11426,3211.1,3210.7,0.11217565]
[1737637752300,3.11426,3211.1,3210.8,0.11217565]
[1737637752897,0.55,3211.1,3210.8,0.11217565]
[1737637753191,3.11439,3210.9,3210.8,0.11217565]
[1737637753550,3.11438,3211.0,3210.8,0.11217565]
[1737637754698,3.11439,3210.9,3210.8,0.11217565]
[1737637754997,7.43319,3210.9,3210.8,0.11217565]
[1737637755297,3.93148,3210.6,3210.5,0.11217565]
[1737637756146,3.11509,3210.2,3209.8,0.11217565]
[1737637757778,3.11509,3210.2,3209.7,3.91954]
[1737637757779,3.11509,3210.2,3209.9,0.11217565]
[1737637758777,3.1149,3210.4,3209.9,0.11217565]
[1737637759282,3.11499,3210.3,3210.0,0.11217565]
[1737637759984,0.8168,3210.6,3210.0,0.11217565]
[1737637760300,3.11503,3210.3,3210.0,0.11217565]
[1737637760489,3.11503,3210.3,3210.1,0.11217565]
[1737637761487,3.11507,3210.2,3210.1,0.11217565]
[1737637762187,3.11503,3210.3,3210.1,0.11217565]
[1737637762792,3.11507,3210.2,3210.1,0.11217565]
[1737637764765,3.11503,3210.3,3210.1,0.11217565]
[1737637765178,3.11507,3210.2,3210.1,0.11217565]
[1737637765369,3.11507,3210.2,3210.0,0.7861]
[1737637767011,3.11507,3210.2,3210.1,0.11246053]
[1737637768994,3.11507,3210.2,3209.8,0.11246053]
[1737637770406,6.23022,3210.2,3209.9,0.11246053]
[1737637770577,3.11507,3210.2,3209.9,0.11246053]
[1737637771075,6.23022,3210.2,3209.9,0.11246053]
[1737637771287,3.11507,3210.2,3209.9,0.11246053]
[1737637771487,3.11517,3210.1,3209.9,0.11246053]
[1737637771921,3.11517,3210.1,3210.0,0.11246053]
[1737637772892,3.11517,3210.1,3209.8,0.11246053]
[1737637773718,3.11517,3210.1,3209.9,0.11246053]
[1737637774230,3.11526,3210.0,3209.9,0.11246053]
[1737637774409,4.563784,3210.0,3209.9,0.11246053]
[1737637775079,3.11536,3209.9,3209.8,0.11246053]
[1737637776616,3.11536,3209.9,3209.4,0.11246053]
[1737637776814,3.11574,3209.6,3209.4,0.11246053]
[1737637777012,3.11575,3209.5,3209.4,0.11246053]
[1737637777320,3.738899,3209.5,3209.4,0.11246053]
[1737637777477,8.119199,3209.5,3209.4,0.11246053]
[1737637777880,3.11594,3209.3,3209.2,0.11246053]
[1737637778979,3.11547,3209.8,3209.3,3.11592]
[1737637779198,3.11547,3209.8,3209.2,3.22848053]
[1737637779517,3.1156,3209.7,3209.3,0.40168805]
[1737637779811,3.11565,3209.6,3209.3,0.40168805]
[1737637779983,3.11565,3209.6,3209.1,0.7884]
[1737637780618,3.11565,3209.6,3209.1,3.90451]
[1737637780819,3.11565,3209.6,3209.2,0.11246053]
[1737637781319,3.11551,3209.8,3209.2,3.22848053]
[1737637781479,6.23105,3209.8,3209.2,3.22848053]
[1737637781681,3.11551,3209.8,3209.3,3.82922905]
[1737637781881,3.11551,3209.8,3209.3,3.94168958]
[1737637783416,3.11551,3209.8,3209.4,0.11246053]
[1737637783784,3.11551,3209.8,3209.5,0.7576]
[1737637784819,3.11551,3209.8,3209.6,0.11246053]
[1737637785405,3.11555,3209.7,3209.6,0.11246053]
[1737637786019,4.568456,3209.7,3209.6,0.11246053]
[1737637786397,3.11591,3209.4,3209.2,0.11246053]
[1737637786598,3.11594,3209.3,3209.2,0.11246053]
[1737637790540,3.11591,3209.4,3209.2,0.11246053]
[1737637790693,3.1157,3209.6,3209.2,0.11246053]
[1737637791524,3.11586,3209.4,3209.2,0.11246053]
[1737637791894,3.11594,3209.3,3209.2,0.11246053]
[1737637793149,3.11583,3209.5,3209.2,0.11246053]
[1737637793637,3.11588,3209.4,3209.2,0.40049575]
[1737637794012,3.11588,3209.4,3209.3,0.11246053]
[1737637794893,3.11571,3209.6,3209.3,0.11246053]
[1737637795094,3.11571,3209.6,3209.3,0.94466053]
[1737637795345,3.11571,3209.6,3209.3,1.23269575]
[1737637795953,0.7552,3210.0,3209.3,1.23269575]
[1737637796133,3.11523,3210.1,3209.5,3.11567]
[1737637796363,3.91067,3210.3,3209.7,3.1155]
[1737637796574,3.11497,3210.3,3209.8,3.91139]
[1737637796935,3.11478,3210.5,3209.8,3.91139]
[1737637797343,3.11493,3210.4,3209.8,3.91139]
[1737637797678,3.11499,3210.3,3209.8,1.82226043]
[1737637798233,3.11499,3210.3,3209.9,0.11246053]
[1737637798942,3.11499,3210.3,3209.9,0.40049575]
[1737637799684,3.11499,3210.3,3210.0,0.11246053]
[1737637800793,3.11499,3210.3,3210.1,0.11246053]
[1737637801175,0.7537,3210.6,3210.1,0.11246053]
[1737637801340,3.11363,3211.7,3210.2,0.7558]
[1737637801341,0.7869,3210.9,3210.2,0.7558]
[1737637801685,3.11464,3210.7,3210.2,0.7558]
[1737637801889,3.11469,3210.6,3210.2,0.7558]
[1737637802443,3.11497,3210.3,3210.1,0.28803522]
[1737637802644,3.11507,3210.2,3210.1,0.28803522]
[1737637802876,4.367334,3210.2,3210.1,0.28803522]
[1737637803398,4.367334,3210.2,3209.3,0.7928]
[1737637803399,3.11562,3209.7,3209.3,0.7928]
[1737637803757,3.11539,3209.9,3209.3,3.90872]
[1737637804392,3.11539,3209.9,3209.4,0.11239806]
[1737637804752,3.11539,3209.9,3209.4,3.22816806]
[1737637805016,3.11546,3209.8,3209.4,0.11239806]
[1737637805160,3.11546,3209.8,3209.5,0.28817558]
[1737637805711,3.11539,3209.9,3209.6,0.11239806]
[1737637806676,3.11526,3210.0,3209.6,0.11239806]
[1737637806873,3.11526,3210.0,3209.7,0.11239806]
[1737637807217,3.11545,3209.8,3209.7,0.40057364]
[1737637807361,3.89125,3209.8,3209.7,0.40057364]
[1737637807610,7.44125,3209.8,3209.7,0.40057364]
[1737637808128,3.11621,3209.1,3208.8,0.28817558]
[1737637808453,3.11617,3209.1,3208.8,0.28817558]
[1737637809563,3.11617,3209.1,3208.9,0.40070723]
[1737637810740,3.11617,3209.1,3209.0,0.11253165]
[1737637811152,3.11617,3209.1,3209.0,0.40070723]